bitfinex/quotes_ETHUSD_20220220
["timestamp","ask_amount","ask_price","bid_price","bid_amount"]
[1645368360230,2.8953994,2625.6,2624.6,1.61975027]
[1645368360432,2.8953994,2625.6,2625.2,0.00169319]
[1645368360829,1.19258082,2625.3,2625.2,0.00169319]
[1645368361431,1.19258082,2625.3,2624.2,4.50062937]
[1645368361731,1.19258082,2625.3,2625.1,0.00169322]
[1645368362631,1.19258082,2625.3,2624.6,1.61971688]
[1645368362833,1.19258082,2625.3,2625.1,0.00169325]
[1645368363478,1.19258082,2625.3,2624.3,1.18232554]
[1645368363676,1.19258082,2625.3,2624.4,1.198952]
[1645368367621,1.19258082,2625.3,2624.4,1.20062454]
[1645368368421,0.00298775,2625.2,2624.4,1.20062454]
[1645368368626,0.00298775,2625.2,2624.4,1.198952]
[1645368368824,0.00298775,2625.2,2624.4,1.20062454]
[1645368369626,0.96152309,2625.0,2624.4,1.20062454]
[1645368369828,0.96152309,2625.0,2624.4,1.198952]
[1645368370030,0.96152309,2625.0,2624.4,1.20062454]
[1645368370432,0.96152309,2625.0,2624.4,0.00167254]
[1645368370690,3.5,2624.9,2624.4,0.00167254]
[1645368370887,15.08,2624.9,2624.4,0.00167254]
[1645368371189,15.08,2624.9,2624.1,0.00140054]
[1645368371190,15.2705,2624.9,2624.1,0.00140054]
[1645368371381,1.0177487,2624.2,2623.7,6.08704764]
[1645368371582,1.0177487,2624.2,2623.7,0.0085471]
[1645368371882,2.18811,2624.8,2623.7,0.0085471]
[1645368372283,2.18811,2624.8,2623.7,0.00185529]
[1645368372481,2.18811,2624.8,2623.7,0.00387618]
[1645368372682,3.14169,2624.8,2623.7,0.00387618]
[1645368373491,1.05437545,2624.6,2624.5,0.00736496]
[1645368377541,0.1905,2624.9,2624.5,0.00736496]
[1645368377739,0.1904,2625.1,2624.5,0.00736496]
[1645368378373,0.1904,2625.1,2623.7,0.00185529]
[1645368378676,0.1904,2625.1,2623.7,0.00387035]
[1645368378880,1.07396712,2624.8,2624.0,0.98145348]
[1645368379275,0.1904,2625.1,2624.0,0.98145348]
[1645368379678,0.1904,2625.1,2624.3,0.0016726]
[1645368380072,3.6904,2625.1,2624.3,0.0016726]
[1645368380678,3.6904,2625.1,2623.7,0.00185529]
[1645368380874,3.6904,2625.1,2624.4,0.00167254]
[1645368381942,3.6904,2625.1,2623.8,1.00504667]
[1645368382133,3.6904,2625.1,2624.4,0.00167254]
[1645368382335,0.1904,2625.1,2624.4,0.00167254]
[1645368383135,0.84669759,2624.9,2623.9,0.00140054]
[1645368383336,0.84669759,2624.9,2624.4,0.00167254]
[1645368383535,0.84669759,2624.9,2624.4,0.00904072]
[1645368383734,0.84669759,2624.9,2624.5,1.61991122]
[1645368388187,0.84669759,2624.9,2624.6,0.0073665]
[1645368394686,4.64765531,2625.1,2624.6,0.0073665]
[1645368394687,1.14765531,2625.1,2624.6,0.0073665]
[1645368394886,2.9964,2625.2,2624.7,1.61982396]
[1645368395091,0.1904,2625.5,2624.7,1.61858713]
[1645368395286,1.14765531,2625.5,2624.7,1.61858713]
[1645368395481,0.95725531,2625.5,2624.7,1.61858713]
[1645368396382,0.19306198,2625.6,2624.7,1.61858713]
[1645368396383,1.14765531,2625.6,2624.7,1.61858713]
[1645368396581,1.1503175,2625.6,2624.7,1.61858713]
[1645368396784,0.9599175,2625.6,2624.7,1.61858713]
[1645368397435,0.1904,2625.7,2624.7,1.61858713]
[1645368397436,0.98862717,2625.4,2624.7,1.61858713]
[1645368398132,0.98862717,2625.4,2624.8,0.8904267]
[1645368398334,0.98862717,2625.4,2624.8,0.89778658]
[1645368398534,0.98862717,2625.4,2624.8,0.00735988]
[1645368406840,1.98862717,2625.4,2624.8,0.00735988]
[1645368407036,0.98862717,2625.4,2624.8,0.00735988]
[1645368407540,1.13829571,2625.0,2624.8,0.00735988]
[1645368412073,4.45725531,2624.9,2624.8,5.988e-05]
[1645368412267,11.7704,2624.9,2624.8,5.988e-05]
[1645368412466,12.7704,2624.9,2624.4,0.00167254]
[1645368412672,4.01193246,2624.8,2624.4,0.00167254]
[1645368412965,1.0,2624.7,2624.4,0.00167254]
[1645368413165,1.0,2624.7,2623.6,0.00140054]
[1645368413166,0.1905,2624.6,2623.6,0.00140054]
[1645368413366,1.16275117,2624.3,2623.7,0.00669181]
[1645368414368,1.16275117,2624.3,2623.5,1.2494]
[1645368414567,1.16275117,2624.3,2623.9,0.00167285]
[1645368415689,1.16275117,2624.3,2623.6,1.62024266]
[1645368415889,1.35325117,2624.3,2624.0,0.00167279]
[1645368416092,0.1905,2624.4,2624.0,0.00167279]
[1645368416691,3.6905,2624.4,2623.7,1.62024266]
[1645368416894,11.58,2624.1,2623.5,1.62024266]
[1645368417194,0.1905,2624.0,2623.7,0.00669191]
[1645368417390,13.7245,2624.0,2623.7,0.00669191]
[1645368417793,1.31110024,2623.9,2623.7,0.00669191]
[1645368417989,0.1905,2623.8,2623.0,0.00140054]
[1645368418191,0.90598699,2623.4,2623.3,0.0066928]
[1645368418994,12.48598699,2623.4,2623.3,9.28e-05]
[1645368419190,12.48598699,2623.4,2621.9,1.52607875]
[1645368419191,12.97648699,2623.4,2622.3,0.00140054]
[1645368419437,12.97648699,2623.4,2622.0,1.62226697]
[1645368419438,1.03246739,2622.6,2622.0,1.62226697]
[1645368419742,1.01927168,2622.9,2622.7,0.69643558]
[1645368419936,0.08104515,2622.8,2622.7,0.69643558]
[1645368420136,1.01927168,2622.9,2622.7,0.69643558]
[1645368420137,1.01927168,2622.9,2622.7,2.30113626]
[1645368420338,1.01927168,2622.9,2622.7,0.69643558]
[1645368420535,0.08104416,2622.8,2622.7,0.69643558]
[1645368422236,3.5,2622.8,2622.7,0.69643558]
[1645368422441,3.58105118,2622.8,2622.7,0.69643558]
[1645368422643,0.95436,2622.6,2622.1,0.00140054]
[1645368422844,0.95436,2622.6,2621.9,0.55968825]
[1645368422845,4.59852105,2622.5,2621.9,0.55968825]
[1645368423039,0.08105118,2622.4,2622.2,0.00662958]
[1645368423283,1.09158087,2622.3,2622.2,0.00662958]
[1645368423484,0.08105118,2622.3,2622.2,0.00662958]
[1645368423789,1.3,2622.8,2622.2,0.00662958]
[1645368423983,1.08105662,2622.7,2621.9,0.55968825]
[1645368424192,0.08105662,2622.6,2622.1,0.00165746]
[1645368424383,0.08105662,2622.5,2622.1,0.00165746]
[1645368424583,0.08105662,2622.5,2622.1,0.97282073]
[1645368424799,1.3,2622.8,2622.1,0.97282073]
[1645368424983,0.08105805,2622.7,2622.1,0.97282073]
[1645368425187,0.13634468,2623.1,2622.1,0.97116327]
[1645368425391,0.08105142,2623.0,2622.1,0.97116327]
[1645368425586,0.13634468,2623.1,2622.3,0.00165734]
[1645368425786,0.1905,2623.6,2622.3,0.00165734]
[1645368425986,0.08104147,2623.5,2622.3,0.00165734]
[1645368426185,0.08104147,2623.4,2623.0,0.90727521]
[1645368426386,1.06315309,2623.8,2623.0,0.90727521]
[1645368426590,0.08103851,2623.7,2623.0,0.90727521]
[1645368427235,0.08103851,2623.9,2623.0,0.90727521]
[1645368427435,0.08103137,2623.8,2623.0,0.90727521]
[1645368427638,2.59276866,2624.1,2623.0,0.90727521]
[1645368427835,2.59276866,2624.1,2623.2,0.00147041]
[1645368427836,0.0810285,2624.0,2623.2,0.00147041]
[1645368428238,0.00256057,2624.1,2623.2,0.00147041]
[1645368428436,0.00256057,2624.1,2623.8,1.16078159]
[1645368428835,0.08101957,2624.3,2623.8,1.16078159]
[1645368429038,0.00256097,2624.1,2623.2,0.00147041]
[1645368430035,0.08101957,2624.3,2623.5,0.98565433]
[1645368430238,0.00256073,2624.1,2623.5,0.98565433]
[1645368430440,0.00256073,2624.1,2623.6,1.53764194]
[1645368430687,0.00256073,2624.1,2623.5,0.98750962]
[1645368431287,0.08101271,2624.8,2623.5,0.98750962]
[1645368431288,0.08101271,2624.8,2624.6,1.12689548]
[1645368431488,0.71746987,2625.4,2624.6,1.12689548]
[1645368431489,0.1904,2625.4,2624.6,1.12689548]
[1645368431786,0.08099909,2625.3,2624.7,3.5]
[1645368432083,0.01026143,2625.7,2624.7,3.5]
[1645368432284,0.08099198,2625.6,2624.7,3.5]
[1645368432484,0.08099198,2625.6,2625.3,1.03595773]
[1645368432789,0.01026605,2625.7,2625.3,1.03595773]
[1645368432983,0.08098401,2625.6,2625.3,1.03595773]
[1645368433188,0.01026605,2625.7,2625.3,1.03595773]
[1645368433384,0.01026605,2625.7,2624.7,3.5]
[1645368433385,0.08098387,2625.6,2624.7,3.5]
[1645368433785,0.08098387,2625.6,2624.5,3.5]
[1645368433985,0.00256687,2625.6,2624.5,3.5]
[1645368434446,0.00256687,2625.6,2624.6,0.1904]
[1645368434632,0.84185834,2625.5,2624.8,0.99243192]
[1645368435031,0.08098849,2625.4,2624.8,0.99243192]
[1645368435232,0.00257667,2625.2,2624.8,0.99243192]
[1645368435436,0.00257667,2625.2,2624.4,4.4209]
[1645368435632,0.00257667,2625.2,2624.1,5.1904]
[1645368435837,0.00257667,2625.2,2624.1,5.0]
[1645368436032,0.08098849,2625.4,2624.1,5.0]
[1645368436233,0.08098849,2625.4,2624.2,3.5]
[1645368436434,0.08098849,2625.4,2624.8,0.93407717]
[1645368437634,0.00257667,2625.2,2624.8,0.93407717]
[1645368437833,0.00257667,2625.2,2624.2,3.5]
[1645368438035,0.00257667,2625.2,2624.1,5.0]
[1645368438288,0.00257667,2625.2,2624.2,3.5]
[1645368438490,0.08099827,2625.4,2624.0,0.00140157]
[1645368438689,0.08099827,2625.4,2624.9,0.00931352]
[1645368439687,0.08099827,2625.4,2624.6,1.09830702]
[1645368439688,0.08099827,2625.4,2624.6,0.99685849]
[1645368440088,0.00257447,2625.3,2624.6,0.99685849]
[1645368440885,0.08099827,2625.4,2624.6,0.99685849]
[1645368441091,0.0025745,2625.1,2624.6,0.99685849]
[1645368442145,0.08099827,2625.4,2624.6,0.99685849]
[1645368442344,0.00257501,2625.0,2624.6,0.99685849]
[1645368443347,0.08099827,2625.4,2624.6,0.99685849]
[1645368443544,0.00257502,2624.9,2624.7,0.00896888]
[1645368444545,0.08099827,2625.4,2624.7,0.00896888]
[1645368444745,0.00257502,2624.9,2624.7,0.00896888]
[1645368445344,0.00257502,2624.9,2624.7,0.9004881]
[1645368445783,0.08099827,2625.4,2624.7,0.00896888]
[1645368445983,0.00257491,2624.9,2624.7,0.00896888]
[1645368446789,0.90542502,2624.9,2624.7,0.00896888]
[1645368446989,0.08099827,2624.8,2624.7,0.00896888]
[1645368447588,0.00257491,2624.9,2624.7,0.00896888]
[1645368447991,1.95335,2625.5,2624.7,0.00896888]
[1645368447992,0.08099827,2625.1,2624.7,0.00896888]
[1645368448189,0.90786987,2625.6,2624.7,1.03945921]
[1645368448190,1.08208054,2625.4,2624.7,1.03945921]
[1645368448388,0.00257491,2624.9,2624.7,1.03945921]
[1645368448588,0.00257491,2624.9,2623.9,0.00896218]
[1645368449453,0.002575,2624.5,2623.9,0.00896218]
[1645368449655,0.002575,2624.5,2624.4,1.1558134]
[1645368450255,0.002575,2624.5,2623.9,0.00896218]
[1645368450554,0.9803899,2625.0,2623.9,0.00896218]
[1645368450555,0.08099625,2624.9,2623.9,0.00896218]
[1645368450755,0.00257499,2624.6,2623.9,0.00896218]
[1645368451358,0.98720768,2624.4,2623.9,0.00896218]
[1645368451555,0.00257499,2624.6,2623.9,0.00896218]
[1645368451556,0.08099625,2624.3,2623.9,0.00896218]
[1645368451761,0.1905,2624.8,2623.9,0.00896218]
[1645368451956,0.08101307,2624.7,2623.9,0.00896218]
[1645368452157,0.1905,2624.6,2623.9,0.00896218]
[1645368452355,0.08101307,2624.5,2623.9,0.00896218]
[1645368452753,0.1905,2625.0,2623.9,0.00896218]
[1645368452754,0.97883514,2624.6,2623.9,0.00896218]
[1645368452956,0.08101325,2624.5,2623.9,0.00896218]
[1645368453184,0.00257852,2624.3,2623.9,0.00896218]
[1645368453383,0.00257852,2624.3,2623.7,1.1288736]
[1645368454185,0.08101325,2624.5,2623.7,1.1288736]
[1645368454388,0.00257855,2624.1,2623.7,1.1288736]
[1645368455185,0.08101285,2624.5,2623.7,1.1288736]
[1645368455585,0.00257848,2624.1,2623.7,1.1288736]
[1645368456586,0.08101322,2624.5,2623.7,1.1288736]
[1645368456785,0.00257848,2624.1,2623.7,1.1288736]
[1645368457644,0.08101322,2624.5,2623.5,0.00185529]
[1645368458046,0.00257848,2624.1,2623.5,0.00185529]
[1645368458247,0.00257848,2624.1,2623.8,0.00865124]
[1645368458945,0.08101322,2624.5,2623.8,0.00865124]
[1645368459147,0.00257852,2624.1,2623.8,0.00865124]
[1645368460147,0.08101322,2624.5,2623.8,0.00865124]
[1645368460148,0.08101322,2624.5,2623.8,0.00778612]
[1645368460349,0.00257852,2624.1,2623.8,0.00778612]
[1645368461386,0.1905,2624.5,2623.8,0.00778612]
[1645368461587,0.00257852,2624.1,2623.8,0.00778612]
[1645368462489,0.08101215,2624.5,2623.8,0.00778612]
[1645368462689,0.00257852,2624.1,2623.8,0.00778612]
[1645368463188,0.00257852,2624.1,2623.6,1.08523295]
[1645368463690,0.08101215,2624.5,2623.5,0.00864358]
[1645368463889,0.00257844,2624.1,2623.5,0.00864358]
[1645368464946,0.27151215,2624.2,2623.5,0.00864358]
[1645368465161,11.58,2623.6,2623.1,0.00140157]
[1645368465344,11.58464218,2623.4,2623.2,5.249e-05]
[1645368465542,17.37848202,2623.3,2623.2,5.249e-05]
[1645368465741,19.53058781,2623.3,2623.2,5.249e-05]
[1645368466046,13.48872,2623.1,2621.8,3.50140157]
[1645368466243,0.87161215,2623.0,2621.6,3.50140157]
[1645368466440,0.87161215,2623.0,2621.6,0.00140157]
[1645368466642,5.08101215,2622.9,2621.4,3.50140157]
[1645368466840,12.7705,2622.8,2621.4,3.50140157]
[1645368467246,1.05601761,2622.1,2621.4,4.53866435]
[1645368467442,1.05601761,2622.1,2621.4,1.03726278]
[1645368468042,0.08107512,2622.0,2621.4,1.03726278]
[1645368468305,0.08107512,2622.0,2621.1,0.00140157]
[1645368468502,1.05601761,2622.1,2621.1,1.54179641]
[1645368468700,1.05601761,2622.1,2620.9,7.32140157]
[1645368468900,1.05601761,2622.1,2621.0,1.54179731]
[1645368469306,0.08108432,2622.0,2621.2,0.97616674]
[1645368469703,0.08108432,2622.0,2620.9,7.32140157]
[1645368469904,0.08108432,2622.0,2620.7,0.00140157]
[1645368470100,0.08108432,2622.0,2620.7,1.54525093]
[1645368470409,0.9547,2621.9,2620.7,1.54525093]
[1645368470604,0.57178432,2621.8,2620.5,0.00140157]
[1645368470803,0.9013411,2621.1,2620.5,0.00140157]
[1645368471001,0.1907,2621.6,2620.3,7.32185529]
[1645368471209,0.95487,2621.3,2621.2,0.0016513]
[1645368471946,1.63597505,2621.3,2621.2,0.0016513]
[1645368472149,2.47299119,2621.3,2619.9,1.00572988]
[1645368472352,1.03193962,2620.7,2620.0,3.5]
[1645368472650,0.6,2621.2,2620.0,0.00140157]
[1645368472848,0.6,2621.2,2619.9,1.00572988]
[1645368473049,0.6,2621.2,2619.9,1.00713145]
[1645368473449,0.95487,2621.3,2620.9,0.00815939]
[1645368473649,0.95484,2621.5,2620.9,0.00815939]
[1645368474650,0.86312896,2621.0,2620.9,0.00815939]
[1645368475884,1.16312896,2621.0,2620.9,0.00815939]
[1645368476684,1.35382896,2621.0,2620.9,0.00815939]
[1645368477282,4.85382896,2621.0,2620.9,0.00815939]
[1645368477685,5.85382896,2621.0,2620.9,0.00815939]
[1645368478186,2.35382896,2621.0,2620.9,0.00815939]
[1645368478486,1.35382896,2621.0,2620.9,0.00815939]
[1645368478685,4.85382896,2621.0,2620.9,0.00815939]
[1645368478886,5.85382896,2621.0,2620.9,0.00815939]
[1645368479287,5.85382896,2621.0,2619.4,0.00140157]
[1645368479555,5.85382896,2621.0,2620.4,0.00659054]
[1645368479556,0.95515,2620.6,2620.4,0.00659054]
[1645368479748,3.5,2620.5,2620.4,0.00659054]
[1645368480047,3.5,2620.5,2620.4,0.00579054]
[1645368480253,16.5707,2620.5,2620.4,9.054e-05]
[1645368480456,16.5707,2620.5,2619.2,0.00140157]
[1645368480457,11.58,2620.2,2619.2,0.00140157]
[1645368480752,0.95551,2619.9,2619.0,0.00140157]
[1645368480952,0.1907,2619.8,2618.3,5.10830157]
[1645368481448,0.9555194,2619.7,2618.3,5.10830157]
[1645368481648,1.03613608,2618.9,2618.3,5.10830157]
[1645368481848,1.03613608,2618.9,2618.2,5.10801687]
[1645368481849,1.03613608,2618.9,2618.2,1.05561687]
[1645368482049,4.7575194,2619.7,2618.2,1.05561687]
[1645368482351,3.802,2619.7,2618.2,1.05701844]
[1645368482546,7.302,2619.7,2618.2,1.05701844]
[1645368482752,0.95551,2619.5,2618.2,1.05701844]
[1645368482948,0.95551,2619.5,2618.2,1.05561687]
[1645368483204,0.95551,2619.5,2618.6,0.91840426]
[1645368483205,1.10031644,2619.3,2618.6,0.91840426]
[1645368483586,0.1908,2619.6,2618.6,0.91840426]
[1645368483787,0.1908,2619.7,2618.6,0.91840426]
[1645368483987,0.1908,2620.0,2618.6,0.91840426]
[1645368484388,0.1908,2620.0,2618.6,0.91980583]
[1645368484587,0.17795818,2620.0,2619.0,0.00163203]
[1645368484785,0.96658123,2619.4,2619.0,0.00163203]
[1645368485187,0.17795818,2620.0,2619.0,0.00163203]
[1645368485389,0.17795818,2620.0,2618.7,0.00140157]
[1645368485793,0.95535,2619.9,2619.1,0.001632]
[1645368485987,1.25535,2619.9,2619.1,0.001632]
[1645368486387,0.93793962,2619.5,2619.1,0.001632]
[1645368486589,0.17795818,2620.0,2618.7,0.00140157]
[1645368486789,0.1907,2620.1,2618.6,0.91840426]
[1645368487048,0.1907,2620.1,2619.4,0.00163182]
[1645368487248,0.13634468,2620.2,2619.4,0.00163182]
[1645368487647,1.00365558,2620.1,2619.4,1.05608497]
[1645368487851,0.13634468,2620.2,2619.4,1.05445315]
[1645368488150,0.1907,2620.6,2619.7,0.00163163]
[1645368488354,0.1907,2621.2,2619.8,0.00185529]
[1645368488549,2.799,2621.3,2619.8,0.00185529]
[1645368488746,0.88620553,2620.8,2620.1,0.84743059]
[1645368488948,2.799,2621.3,2619.8,0.00185529]
[1645368489347,2.799,2621.3,2620.3,0.00163126]
[1645368489557,0.1907,2621.2,2620.3,0.00163126]
[1645368490047,0.8696364,2621.1,2620.3,0.00163126]
[1645368490253,5.0,2620.9,2619.4,0.00140157]
[1645368490448,5.0,2620.9,2620.3,0.00163126]
[1645368490449,0.95519,2620.5,2620.3,0.00163126]
[1645368490703,0.1907,2620.4,2620.3,0.00163126]
[1645368490899,0.7907,2620.4,2620.3,0.00163126]
[1645368491293,0.7907,2620.4,2619.6,0.00652666]
[1645368491494,1.04717547,2620.0,2619.2,1.03059341]
[1645368491697,0.1907,2620.5,2619.6,0.00652666]
[1645368491897,0.95522,2620.6,2619.6,0.00652666]
[1645368492396,0.6,2620.5,2619.6,0.00652666]
[1645368492595,0.6,2620.5,2619.3,0.00140157]
[1645368492796,0.89600279,2620.0,2619.2,1.03059341]
[1645368492996,0.89600279,2620.0,2619.6,0.00652675]
[1645368493698,0.1907,2620.5,2619.6,0.00652675]
[1645368493896,0.1907,2620.5,2619.3,0.00140157]
[1645368494098,0.7907,2620.5,2619.7,0.00163163]
[1645368494846,0.1907,2620.5,2619.7,0.00163163]
[1645368495049,1.9102,2621.0,2618.9,3.50140157]
[1645368495050,0.1907,2620.8,2618.9,3.50140157]
[1645368495247,0.88794322,2620.1,2620.0,0.00163144]
[1645368496246,0.88794322,2620.1,2619.0,0.00140157]
[1645368496448,0.88794322,2620.1,2619.9,0.00163147]
[1645368497345,0.88794322,2620.1,2619.2,0.00140157]
[1645368497547,0.8737992,2619.7,2619.1,1.02857397]
[1645368497748,0.8737992,2619.7,2619.5,0.006527]
[1645368498601,0.8737992,2619.7,2618.2,5.2201]
[1645368498602,0.95555,2619.6,2618.4,0.00140157]
[1645368498798,4.64635,2619.6,2618.2,2.41370157]
[1645368498995,3.9908,2619.6,2619.5,0.00163175]
[1645368499197,3.6908,2619.6,2619.5,0.00163175]
[1645368499398,4.6908,2619.6,2619.5,0.00163175]
[1645368499796,4.6908,2619.6,2618.3,0.00140157]
[1645368499996,1.17026808,2618.8,2618.3,0.00140157]
[1645368500199,4.6908,2619.6,2618.9,0.56114361]
[1645368500396,0.90245577,2619.3,2618.9,0.56114361]
[1645368500598,4.59325577,2619.3,2618.9,0.56114361]
[1645368501397,1.09325577,2619.3,2619.0,0.00163207]
[1645368501797,0.90245577,2619.3,2619.0,0.00163207]
[1645368502238,0.90245577,2619.3,2618.9,0.56114361]
[1645368502444,20.5,2619.2,2618.9,3.203e-05]
[1645368502647,20.5,2619.2,2618.6,0.00652912]
[1645368502648,16.3792,2619.1,2618.6,0.00652912]
[1645368502841,1.1908,2619.0,2618.6,0.00652912]
[1645368503244,0.3792,2618.8,2617.3,0.00140157]
[1645368503440,0.8912179,2618.1,2617.5,1.12789659]
[1645368503642,0.191,2618.5,2617.5,1.12929816]
[1645368503846,1.14704,2618.5,2617.5,1.12789659]
[1645368504443,1.14704,2618.5,2617.3,0.00140157]
[1645368504643,1.14704,2618.5,2617.2,7.32]
[1645368504841,3.5,2618.4,2617.2,7.32]
[1645368505143,0.95602,2618.2,2617.2,7.32]
[1645368505990,0.95602,2618.2,2617.1,5.1606809]
[1645368506187,0.95602,2618.2,2617.1,0.92667933]
[1645368506588,0.88198329,2617.8,2617.1,0.92667933]
[1645368507387,0.88198329,2617.8,2617.3,0.00160867]
[1645368508188,0.95602,2618.2,2617.4,0.00876699]
[1645368508189,4.45602,2618.2,2617.4,0.00876699]
[1645368508393,13.4922695,2618.0,2617.4,0.00876699]
[1645368508590,0.191,2617.9,2617.4,0.0103756]
[1645368508793,0.95625,2617.6,2617.4,7.56e-05]
[1645368508998,0.191,2617.5,2617.4,7.56e-05]
[1645368509193,0.491,2617.5,2617.4,7.56e-05]
[1645368509443,0.491,2617.5,2616.4,1.12965276]
[1645368509945,1.491,2617.5,2616.5,0.04206334]
[1645368510445,1.491,2617.5,2615.7,0.04661072]
[1645368510643,15.08,2617.4,2615.5,0.04960286]
[1645368510844,0.95636,2617.2,2615.6,1.48658636]
[1645368511044,0.191,2617.1,2615.9,0.94649934]
[1645368511247,0.191,2617.1,2615.9,0.94790091]
[1645368511443,0.191,2617.1,2616.0,0.04490545]
[1645368511844,15.271,2617.1,2615.5,0.00185529]
[1645368512044,3.691,2617.1,2616.4,0.00160137]
[1645368512243,1.0619184,2616.6,2616.4,0.00160137]
[1645368512643,0.191,2617.1,2616.4,0.00160137]
[1645368513044,0.191,2617.1,2615.5,0.00185529]
[1645368513296,0.191,2617.1,2616.2,0.00193585]
[1645368513500,0.191,2617.1,2616.3,1.05992117]
[1645368513501,0.99196105,2617.0,2616.3,1.05992117]
[1645368513696,0.191,2617.1,2616.3,1.05992117]
[1645368514317,0.191,2617.4,2616.3,1.05992117]
[1645368514697,0.191,2617.5,2616.3,1.05992117]
[1645368514897,0.191,2617.5,2616.8,1.05476336]
[1645368514898,1.33010705,2617.5,2616.8,1.05476336]
[1645368515302,1.33010705,2617.5,2616.2,4.08443588]
[1645368515499,1.33010705,2617.5,2616.1,4.926]
[1645368515699,1.33010705,2617.5,2616.6,0.00193555]
[1645368516709,1.33010705,2617.5,2616.5,1.04704504]
[1645368516941,1.33010705,2617.5,2616.9,0.00160106]
[1645368517934,1.33010705,2617.5,2616.5,1.04704504]
[1645368518135,1.33010705,2617.5,2617.1,0.00160097]
[1645368519033,1.33010705,2617.5,2616.5,0.99704504]
[1645368519234,1.33010705,2617.5,2617.2,0.00160091]
[1645368519444,0.191,2617.5,2617.2,0.00160091]
[1645368519643,0.191,2617.8,2617.2,0.00160091]
[1645368519944,0.191,2618.2,2617.2,0.00160091]
[1645368520338,0.191,2618.5,2617.0,3.5]
[1645368520701,0.98270776,2618.2,2617.5,1.16771116]
[1645368521092,0.98270776,2618.2,2617.0,0.0064041]
[1645368521093,0.14932796,2617.3,2617.0,0.0064041]
[1645368521491,0.14932796,2617.3,2616.8,4.0874]
[1645368522497,0.14932796,2617.3,2616.3,8.0725]
[1645368522694,0.14932796,2617.3,2616.3,1.2201]
[1645368523693,1.02124687,2617.2,2616.5,1.19494226]
[1645368523895,0.14932796,2617.3,2616.5,1.19494226]
[1645368524195,0.14932796,2617.3,2616.5,0.94594226]
[1645368525043,0.14932796,2617.3,2617.2,0.87334166]
[1645368525638,0.14932796,2617.3,2616.8,0.00159715]
[1645368526337,0.14932796,2617.3,2616.4,3.5]
[1645368526539,0.14932796,2617.3,2616.9,0.00159706]
[1645368526937,0.14932796,2617.3,2617.1,0.97419325]
[1645368527142,0.14932796,2617.3,2616.9,0.00159706]
[1645368527541,0.14932796,2617.3,2616.4,3.5]
[1645368527742,0.14932796,2617.3,2617.0,0.00159703]
[1645368528201,0.14932796,2617.3,2617.0,0.84719875]
[1645368528791,0.14932796,2617.3,2617.0,0.84560172]
[1645368528989,0.14932796,2617.3,2617.0,0.84719872]
[1645368529795,0.14932796,2617.3,2617.0,0.84560172]
[1645368529992,0.14932796,2617.3,2617.0,0.79560172]
[1645368530200,0.191,2618.5,2617.2,5.0]
[1645368530398,0.13634468,2618.6,2617.3,3.5]
[1645368530597,0.00267181,2618.9,2617.3,8.5]
[1645368530993,0.1908,2619.1,2617.3,3.5]
[1645368531194,0.1908,2619.1,2618.3,0.97721838]
[1645368531398,0.00267261,2618.9,2618.3,0.97721838]
[1645368531794,0.00267261,2618.9,2617.8,0.00185529]
[1645368532355,0.098454,2619.1,2617.8,0.00185529]
[1645368532852,1.19137026,2618.5,2617.8,1.17103899]
[1645368533749,0.00267265,2618.9,2617.8,1.17103899]
[1645368534351,0.10137653,2618.9,2617.8,1.17103899]
[1645368534550,0.10137653,2618.9,2617.8,0.00185529]
[1645368534753,0.1908,2618.8,2617.8,0.00185529]
[1645368534955,0.09870388,2618.7,2617.8,0.00185529]
[1645368535155,0.1908,2618.6,2617.2,5.09769691]
[1645368535355,0.09870388,2618.5,2617.2,0.00159691]
[1645368535554,0.94943777,2617.6,2617.2,0.00159691]
[1645368535799,0.7908,2618.4,2617.2,0.00159691]
[1645368535996,0.09886266,2618.3,2616.9,3.6613]
[1645368536296,0.191,2618.2,2617.2,0.00159691]
[1645368536495,0.09886266,2618.1,2617.2,0.00159691]
[1645368536697,0.191,2618.0,2617.2,0.00159691]
[1645368537195,0.87647451,2617.4,2616.7,0.84035423]
[1645368537599,0.87647451,2617.4,2617.2,0.00159691]
[1645368538396,0.87647451,2617.4,2616.1,1.23065529]
[1645368538603,0.191,2618.0,2617.2,0.00159691]
[1645368538897,0.09317995,2617.9,2617.2,0.00159691]
[1645368539096,0.191,2617.8,2617.2,0.00159691]
[1645368539296,0.09317995,2617.7,2617.2,0.00159691]
[1645368539544,1.1062416,2617.3,2616.4,0.88497818]
[1645368539740,1.1062416,2617.3,2617.2,0.00141725]
[1645368539940,0.191,2618.0,2617.2,0.00141725]
[1645368540148,0.0933889,2617.9,2617.2,0.00141725]
[1645368540344,0.191,2618.0,2617.2,0.00141725]
[1645368540544,0.09334747,2617.9,2617.2,0.00141725]
[1645368540744,0.09334747,2617.9,2616.4,0.88497818]
[1645368541144,0.09334747,2617.9,2617.2,0.00141725]
[1645368541145,0.87151549,2617.3,2617.2,0.00141725]
[1645368541343,0.87151549,2617.3,2617.2,0.00057886]
[1645368541546,0.191,2618.0,2617.2,0.00057886]
[1645368541746,0.09360236,2617.9,2617.2,0.00057886]
[1645368542045,0.09360236,2617.9,2616.4,8.20497818]
[1645368542046,0.191,2617.8,2616.4,8.20497818]
[1645368542247,0.09360236,2617.7,2616.5,1.51232229]
[1645368542448,0.191,2617.6,2616.5,1.51232229]
[1645368542845,2.55608,2618.1,2616.5,5.01232229]
[1645368542846,0.94011176,2617.4,2616.5,5.01232229]
[1645368543045,0.94011176,2617.4,2616.6,1.51232229]
[1645368543487,0.94011176,2617.4,2616.8,0.99684239]
[1645368543690,0.191,2618.0,2616.8,0.99684239]
[1645368543888,0.191,2618.0,2616.9,1.51662077]
[1645368543889,0.08970556,2617.9,2616.9,1.51662077]
[1645368544190,0.191,2617.8,2616.9,5.01662077]
[1645368544390,0.191,2618.1,2617.0,1.51662077]
[1645368544695,0.08975468,2618.0,2617.6,1.10636118]
[1645368544888,0.08975468,2618.0,2617.1,8.75517805]
[1645368545088,0.08975468,2617.9,2617.2,1.51889159]
[1645368545687,1.05572556,2618.3,2617.2,1.51889159]
[1645368546089,1.05572556,2618.3,2617.3,1.02730991]
[1645368546289,0.0898595,2618.2,2617.3,1.02730991]
[1645368546690,1.13252991,2617.9,2617.3,1.02730991]
[1645368546946,0.0898595,2617.8,2617.1,5.2539]
[1645368547243,0.0898595,2617.8,2617.2,1.52079847]
[1645368547442,0.0898595,2617.8,2617.1,0.00130728]
[1645368548043,0.0898595,2617.8,2617.0,1.5208075]
[1645368548044,0.87208335,2617.5,2617.0,1.5208075]
[1645368548245,0.87208335,2617.5,2617.1,1.5208075]
[1645368548643,0.87208335,2617.5,2616.8,1.04158395]
[1645368548846,0.87208335,2617.5,2616.9,1.52081593]